bitfinex/quotes_BTCUSD_20241229
["timestamp","ask_amount","ask_price","bid_price","bid_amount"]
[1735487537182,1.2449116,94907.0,94906.0,0.00015182]
[1735487537327,1.1548956,94907.0,94906.0,0.00015182]
[1735487538416,1.0517996,94907.0,94906.0,0.00015182]
[1735487538566,1.0288356,94907.0,94906.0,0.00015182]
[1735487538776,1.31254426,94907.0,94886.0,0.08242262]
[1735487538977,0.86531,94906.0,94886.0,0.08242262]
[1735487539175,0.10398632,94905.0,94886.0,0.08242262]
[1735487539374,0.725419,94904.0,94886.0,0.08242262]
[1735487539614,0.10398632,94903.0,94886.0,0.08242262]
[1735487539819,0.10398632,94902.0,94886.0,0.08242262]
[1735487540022,0.786707,94901.0,94886.0,0.08242262]
[1735487540216,0.724626,94901.0,94886.0,0.08242262]
[1735487540465,0.766849,94901.0,94886.0,0.08242262]
[1735487542111,0.768849,94901.0,94886.0,0.08242262]
[1735487542313,0.94848,94900.0,94886.0,0.08242262]
[1735487542962,0.01653036,94897.0,94886.0,0.08242262]
[1735487543171,0.01653036,94897.0,94888.0,0.1281]
[1735487543347,0.003,94901.0,94888.0,0.1281]
[1735487543551,0.26506,94900.0,94889.0,0.0805]
[1735487543756,0.002,94901.0,94900.0,0.07977128]
[1735487543992,0.002,94901.0,94900.0,0.20687128]
[1735487544196,7.985e-05,94907.0,94904.0,0.1]
[1735487544403,7.985e-05,94907.0,94905.0,0.1281]
[1735487544766,7.985e-05,94907.0,94906.0,0.07877128]
[1735487544972,7.985e-05,94907.0,94906.0,0.17777128]
[1735487545155,7.985e-05,94907.0,94906.0,0.30587128]
[1735487545355,7.985e-05,94907.0,94906.0,0.4098576]
[1735487545638,0.00107985,94907.0,94906.0,0.4098576]
[1735487545862,0.02222872,94950.0,94918.0,0.0805]
[1735487545863,0.28370866,94944.0,94918.0,0.0805]
[1735487546064,1.01693232,94943.0,94922.0,0.0476]
[1735487546352,0.588569,94942.0,94922.0,0.0476]
[1735487546502,0.10398632,94941.0,94922.0,0.0476]
[1735487546704,0.01652521,94938.0,94922.0,0.0476]
[1735487547072,0.193934,94937.0,94922.0,0.0476]
[1735487547681,0.172792,94937.0,94922.0,0.0476]
[1735487548232,0.151647,94937.0,94922.0,0.0476]
[1735487549992,0.10398632,94936.0,94922.0,0.0476]
[1735487550185,2.044466,94935.0,94922.0,0.0476]
[1735487550727,0.10398632,94934.0,94908.0,0.1]
[1735487550926,2.634949,94933.0,94909.0,0.1281]
[1735487551099,0.02222872,94930.0,94909.0,0.1281]
[1735487551249,3.43013732,94929.0,94909.0,0.1281]
[1735487551449,3.16386623,94928.0,94909.0,0.1281]
[1735487551652,3.28444392,94927.0,94909.0,0.1281]
[1735487551900,2.457442,94926.0,94909.0,0.1281]
[1735487552207,1.44228732,94925.0,94909.0,0.1281]
[1735487552420,1.288414,94924.0,94909.0,0.1281]
[1735487552590,0.10398632,94923.0,94909.0,0.1281]
[1735487552767,1.245811,94922.0,94909.0,0.1281]
[1735487552966,0.78114232,94921.0,94909.0,0.1281]
[1735487553173,0.467459,94920.0,94909.0,0.1281]
[1735487553369,0.57144532,94920.0,94909.0,0.1281]
[1735487553602,0.00017778,96333.0,94914.0,0.07777128]
[1735487553603,0.28370866,94934.0,94914.0,0.07777128]
[1735487553774,0.28370866,94934.0,94921.0,0.07777128]
[1735487554265,0.28370866,94934.0,94931.0,0.07777128]
[1735487554470,0.28370866,94935.0,94931.0,0.07777128]
[1735487555343,0.001,94934.0,94931.0,0.07777128]
[1735487555842,0.001,94934.0,94931.0,0.07677128]
[1735487556645,0.01652386,94934.0,94931.0,0.07677128]
[1735487556886,0.01652386,94934.0,94928.0,0.1]
[1735487557039,1.304554,94933.0,94926.0,0.0805]
[1735487557259,0.950385,94932.0,94926.0,0.0805]
[1735487557623,1.008773,94933.0,94926.0,0.0805]
[1735487557829,0.01652386,94934.0,94928.0,0.1]
[1735487558833,0.01752386,94934.0,94928.0,0.1]
[1735487559010,0.01752386,94934.0,94926.0,0.15727128]
[1735487559011,0.01652386,94934.0,94926.0,0.15727128]
[1735487559319,0.01652386,94934.0,94928.0,0.1]
[1735487559460,0.01752386,94934.0,94928.0,0.1]
[1735487563802,0.001,94934.0,94928.0,0.1]
[1735487564174,0.001,94934.0,94932.0,0.07677128]
[1735487565820,8.54e-05,94937.0,94932.0,0.07677128]
[1735487566110,0.001,94934.0,94932.0,0.07677128]
[1735487566974,8.54e-05,94937.0,94932.0,0.07677128]
[1735487567229,0.01652401,94934.0,94932.0,0.07677128]
[1735487569492,0.01752401,94934.0,94932.0,0.07677128]
[1735487573838,0.001,94934.0,94932.0,0.07677128]
[1735487577288,0.01752408,94934.0,94932.0,0.07677128]
[1735487578341,0.01760948,94934.0,94932.0,0.07677128]
[1735487583950,0.0010854,94934.0,94932.0,0.07677128]
[1735487584999,0.0010854,94934.0,94933.0,0.02574421]
[1735487585419,0.0010854,94934.0,94932.0,0.07677128]
[1735487586495,0.0010854,94934.0,94932.0,0.04147147]
[1735487586840,0.2852364,94934.0,94932.0,0.04147147]
[1735487587867,0.0010854,94934.0,94932.0,0.04147147]
[1735487588630,0.01760963,94934.0,94932.0,0.04147147]
[1735487589027,0.01760963,94934.0,94931.0,0.0001708]
[1735487590146,0.01660963,94934.0,94931.0,0.0001708]
[1735487590347,0.01760963,94934.0,94931.0,0.0001708]
[1735487592353,0.100227,94933.0,94931.0,0.0001708]
[1735487592579,0.100227,94933.0,94921.0,0.04147147]
[1735487592784,0.100227,94933.0,94920.0,0.13553224]
[1735487593117,0.100227,94933.0,94920.0,0.03553224]
[1735487593294,0.31966987,94927.0,94920.0,0.03553224]
[1735487593813,0.31966987,94927.0,94920.0,0.13553224]
[1735487594219,0.31966987,94926.0,94920.0,0.13553224]
[1735487595049,0.31966987,94928.0,94920.0,0.13553224]
[1735487595722,0.336012,94927.0,94920.0,0.03553224]
[1735487596484,0.65568187,94927.0,94920.0,0.03553224]
[1735487596686,0.633188,94926.0,94920.0,0.03553224]
[1735487596888,0.240045,94926.0,94920.0,0.03553224]
[1735487597086,0.01652586,94925.0,94920.0,0.03553224]
[1735487597293,0.31966987,94923.0,94920.0,0.03553224]
[1735487597551,0.137769,94922.0,94920.0,0.03553224]
[1735487597913,0.31966987,94923.0,94920.0,0.03553224]
[1735487598095,0.115112,94922.0,94920.0,0.03553224]
[1735487599421,0.191287,94923.0,94920.0,0.03553224]
[1735487599977,0.51095687,94923.0,94920.0,0.03553224]
[1735487600403,0.114007,94922.0,94920.0,0.03553224]
[1735487600596,0.31966987,94923.0,94920.0,0.13553224]
[1735487600799,0.31966987,94923.0,94912.0,0.0775]
[1735487600800,0.31966987,94924.0,94912.0,0.1256]
[1735487601233,0.807296,94923.0,94912.0,0.1256]
[1735487601434,0.807296,94923.0,94912.0,0.0481]
[1735487601547,0.31966987,94920.0,94912.0,0.0481]
[1735487602783,0.31966987,94917.0,94912.0,0.0481]
[1735487603520,0.31966987,94916.0,94912.0,0.0481]
[1735487603745,0.769797,94915.0,94906.0,0.0001708]
[1735487604308,1.08946687,94915.0,94906.0,0.0001708]
[1735487604470,0.842492,94914.0,94906.0,0.0001708]
[1735487604672,0.840492,94913.0,94906.0,0.0001708]
[1735487604872,0.5698,94914.0,94906.0,0.0001708]
[1735487605300,0.28474009,94912.0,94906.0,0.0001708]
[1735487605708,0.567087,94911.0,94906.0,0.0001708]
[1735487605907,0.28474009,94912.0,94907.0,0.01278496]
[1735487606330,0.005,94914.0,94910.0,0.04147147]
[1735487606669,0.005,94914.0,94907.0,0.01278496]
[1735487606670,0.003,94914.0,94913.0,0.077]
[1735487606817,0.003,94914.0,94913.0,0.076]
[1735487607021,0.003,94914.0,94913.0,0.09904272]
[1735487607222,0.003,94914.0,94913.0,0.26577147]
[1735487607605,0.01952615,94914.0,94913.0,0.26577147]
[1735487608004,0.01652615,94914.0,94913.0,0.26577147]
[1735487608616,0.01752615,94914.0,94913.0,0.26577147]
[1735487609047,0.01652615,94914.0,94913.0,0.26377147]
[1735487609254,0.01652615,94914.0,94913.0,0.29144419]
[1735487609429,0.01652615,94914.0,94913.0,0.26477147]
[1735487610029,0.01752615,94914.0,94913.0,0.26477147]
[1735487612990,0.001,94914.0,94913.0,0.26477147]
[1735487613820,0.001,94914.0,94913.0,0.36875779]
[1735487613999,0.001,94914.0,94913.0,0.40566773]
[1735487614843,0.001,94914.0,94913.0,0.36875779]
[1735487615859,8.54e-05,94928.0,94921.0,0.1]
[1735487616058,8.54e-05,94928.0,94921.0,0.099]
[1735487616381,8.54e-05,94928.0,94921.0,0.098]
[1735487616691,0.01652503,94927.0,94921.0,0.098]
[1735487617095,0.01652503,94927.0,94921.0,0.097]
[1735487617638,0.01652503,94927.0,94921.0,0.098]
[1735487618191,0.01652503,94927.0,94921.0,0.097]
[1735487618592,0.0166263,94927.0,94921.0,0.098]
[1735487620004,0.0166263,94927.0,94921.0,0.1]
[1735487620567,0.30122439,94927.0,94921.0,0.1]
[1735487621967,0.0166263,94927.0,94921.0,0.1]
[1735487623845,0.00010127,94927.0,94921.0,0.1]
[1735487625363,0.28469936,94927.0,94921.0,0.1]
[1735487627088,0.28469936,94927.0,94922.0,0.0799]
[1735487627242,0.30112353,94926.0,94922.0,0.0799]
[1735487627844,0.30112353,94926.0,94925.0,0.04147147]
[1735487630200,0.01652544,94926.0,94925.0,0.04247147]
[1735487630744,0.01652544,94926.0,94925.0,0.04147147]
[1735487630946,0.01652544,94926.0,94925.0,0.04247147]
[1735487631350,0.01652544,94926.0,94925.0,0.04447147]
[1735487633430,0.01652544,94926.0,94925.0,0.09227147]
[1735487633795,0.00018667,94927.0,94925.0,0.09227147]
[1735487634578,0.00018667,94927.0,94925.0,0.09127147]
[1735487634964,0.00018667,94927.0,94925.0,0.09227147]
[1735487635407,0.00018667,94927.0,94925.0,0.09027147]
[1735487636286,0.00018667,94927.0,94925.0,0.09227147]
[1735487637068,0.01671141,94927.0,94925.0,0.09227147]
[1735487641664,0.01671141,94927.0,94925.0,0.003]
[1735487642693,0.01671141,94927.0,94925.0,0.002]
[1735487643100,0.01671141,94927.0,94921.0,0.0971708]
[1735487643598,0.01871141,94927.0,94921.0,0.0971708]
[1735487643925,0.00318667,94927.0,94921.0,0.0971708]
[1735487644366,0.00218667,94927.0,94921.0,0.0971708]
[1735487644768,0.00418667,94927.0,94921.0,0.0971708]
[1735487645622,0.00218667,94927.0,94921.0,0.0971708]
[1735487646101,0.00518667,94927.0,94921.0,0.0971708]
[1735487646432,0.00218667,94927.0,94921.0,0.0971708]
[1735487646812,0.00518667,94927.0,94921.0,0.0971708]
[1735487647045,0.00518667,94927.0,94921.0,0.0001708]
[1735487647209,0.01652546,94926.0,94921.0,0.0001708]
[1735487648428,0.01752546,94926.0,94921.0,0.0001708]
[1735487649105,0.01952546,94926.0,94921.0,0.0001708]
[1735487649446,0.01952546,94926.0,94921.0,0.0971708]
[1735487650047,0.01952546,94926.0,94924.0,0.04147147]
[1735487650403,0.3400302,94926.0,94924.0,0.04147147]
[1735487650816,0.3390302,94926.0,94924.0,0.04147147]
[1735487651019,0.3400302,94926.0,94921.0,0.0971708]
[1735487651703,0.3390302,94926.0,94924.0,0.04147147]
[1735487651848,0.3400302,94926.0,94924.0,0.04147147]
[1735487652062,0.3380302,94926.0,94924.0,0.04147147]
[1735487652638,0.01952546,94926.0,94924.0,0.04147147]
[1735487652839,0.01952546,94926.0,94921.0,0.0971708]
[1735487653095,0.280103,94925.0,94921.0,0.0001708]
[1735487655747,0.00018667,94927.0,94921.0,0.0001708]
[1735487655748,0.844466,94926.0,94921.0,0.0001708]
[1735487655949,0.888592,94926.0,94921.0,0.0001708]
[1735487656672,0.795092,94926.0,94921.0,0.0001708]
[1735487657023,0.002,94925.0,94921.0,0.0001708]
[1735487657230,0.01752606,94925.0,94921.0,0.0001708]
[1735487657455,0.01652606,94925.0,94921.0,0.0001708]
[1735487658356,0.324544,94924.0,94921.0,0.0001708]
[1735487660560,0.325544,94924.0,94921.0,0.0001708]
[1735487660764,0.002,94924.0,94921.0,0.0001708]
[1735487664086,0.32069025,94922.0,94921.0,0.0001708]
[1735487665132,0.001,94924.0,94921.0,0.0001708]
[1735487666529,0.32068442,94923.0,94921.0,0.0001708]
[1735487667174,0.3372105,94923.0,94921.0,0.0001708]
[1735487667938,0.3372105,94923.0,94921.0,0.0011708]
[1735487669345,0.32068442,94922.0,94921.0,0.0011708]
[1735487670134,0.32068442,94922.0,94921.0,0.0001708]
[1735487670515,0.32068442,94922.0,94921.0,0.0021708]
[1735487670934,0.32068442,94922.0,94918.0,0.09574217]
[1735487671234,0.32068442,94922.0,94916.0,0.0486]
[1735487671940,0.32068442,94920.0,94916.0,0.0486]
[1735487673040,0.32068442,94919.0,94916.0,0.0486]
[1735487673169,0.32068442,94919.0,94913.0,0.0001708]
[1735487673378,0.077,94918.0,94913.0,0.0001708]
[1735487673598,0.48190632,94917.0,94913.0,0.0001708]
[1735487673821,1.981854,94916.0,94913.0,0.0001708]
[1735487673979,0.10618396,94915.0,94913.0,0.0001708]
[1735487674186,2.931655,94914.0,94913.0,0.0001708]
[1735487674402,3.11264132,94914.0,94913.0,0.0001708]
[1735487675042,3.13246903,94914.0,94913.0,0.0001708]
[1735487675619,3.11264132,94914.0,94913.0,0.0001708]
[1735487676363,0.20081828,94914.0,94913.0,0.0001708]
[1735487676724,3.39864432,94914.0,94913.0,0.0001708]
[1735487676928,3.41717506,94914.0,94913.0,0.0001708]
[1735487677351,3.43900702,94914.0,94913.0,0.0001708]
[1735487677558,3.43900702,94914.0,94913.0,9.646e-05]
[1735487678275,3.42801602,94914.0,94913.0,9.646e-05]
[1735487678707,3.41501602,94914.0,94913.0,9.646e-05]
[1735487678909,3.34761102,94914.0,94913.0,9.646e-05]
[1735487680126,3.35161102,94914.0,94913.0,9.646e-05]
[1735487680330,3.28911802,94914.0,94913.0,9.646e-05]
[1735487680509,3.02848402,94914.0,94913.0,9.646e-05]
[1735487680661,3.03748402,94914.0,94913.0,9.646e-05]
[1735487681694,3.01765206,94914.0,94913.0,9.646e-05]
[1735487682332,3.07618059,94914.0,94913.0,9.646e-05]
[1735487683536,3.07218059,94914.0,94913.0,9.646e-05]
[1735487683935,3.02829285,94914.0,94913.0,9.646e-05]
[1735487684134,3.03229285,94914.0,94913.0,9.646e-05]
[1735487684303,3.07809285,94914.0,94913.0,9.646e-05]
[1735487684502,3.07409285,94914.0,94913.0,9.646e-05]
[1735487684718,3.06509285,94914.0,94913.0,9.646e-05]
[1735487684966,3.07809285,94914.0,94913.0,9.646e-05]
[1735487687163,2.83060775,94914.0,94913.0,9.646e-05]
[1735487687382,1.75897375,94914.0,94913.0,9.646e-05]
[1735487687559,1.81750228,94914.0,94913.0,9.646e-05]
[1735487690800,0.26904528,94914.0,94913.0,9.646e-05]
[1735487691202,2.85387328,94914.0,94913.0,9.646e-05]
[1735487691332,2.84521328,94914.0,94913.0,9.646e-05]
[1735487692101,2.84529868,94914.0,94913.0,5.419e-05]
[1735487692393,2.86513188,94914.0,94913.0,5.419e-05]
[1735487692586,2.78013888,94914.0,94913.0,5.419e-05]
[1735487693979,2.76360845,94914.0,94913.0,5.419e-05]
[1735487695503,2.61069045,94914.0,94913.0,5.419e-05]
[1735487695639,2.47385145,94914.0,94913.0,5.419e-05]
[1735487695850,2.04203745,94914.0,94913.0,5.419e-05]
[1735487696057,1.96142745,94914.0,94913.0,5.419e-05]
[1735487696265,1.94159425,94914.0,94913.0,3.86e-06]
[1735487697109,1.95812459,94914.0,94887.0,0.14564217]
[1735487697312,1.96618832,94913.0,94888.0,0.01871136]
[1735487697517,1.84231753,94912.0,94888.0,0.01871136]
[1735487697717,1.59515132,94911.0,94887.0,0.14564217]
[1735487697919,1.445586,94910.0,94887.0,0.14564217]
[1735487698128,0.28423699,94903.0,94887.0,0.14564217]
[1735487698343,0.72001732,94902.0,94887.0,0.14564217]
[1735487698616,0.895687,94901.0,94887.0,0.14564217]
[1735487698815,0.30076782,94899.0,94887.0,0.14564217]
[1735487699132,0.988413,94898.0,94887.0,0.14564217]
[1735487700113,0.988413,94898.0,94887.0,0.22484217]
[1735487700309,0.10398632,94897.0,94887.0,0.04997985]
[1735487700562,2.414105,94896.0,94887.0,0.04997985]
[1735487700899,2.66132232,94895.0,94887.0,0.04997985]
[1735487701070,2.156339,94894.0,94887.0,0.04997985]
[1735487701289,1.28833932,94893.0,94887.0,0.04997985]
[1735487701445,0.863054,94892.0,94887.0,0.04997985]
[1735487701651,0.67323332,94891.0,94887.0,0.04997985]
[1735487701848,0.28423699,94890.0,94887.0,0.04997985]
[1735487702033,0.484172,94889.0,94887.0,0.04997985]
[1735487702234,0.472845,94889.0,94887.0,0.04997985]
[1735487702437,0.491637,94889.0,94887.0,0.04997985]
[1735487702700,0.40876276,94889.0,94887.0,0.04997985]
[1735487703003,0.385917,94888.0,94887.0,0.04997985]
[1735487704271,0.377458,94888.0,94887.0,0.04997985]
[1735487704475,0.686579,94895.0,94887.0,0.04997985]
[1735487704694,0.70532132,94894.0,94887.0,0.05015065]
[1735487704905,0.549888,94893.0,94887.0,0.05015065]
[1735487705495,0.446509,94892.0,94887.0,0.05015065]
[1735487705670,0.476896,94893.0,94887.0,0.05015065]
[1735487706071,0.76113299,94893.0,94887.0,0.05015065]
[1735487706338,1.012604,94892.0,94887.0,0.05015065]
[1735487706543,1.000679,94892.0,94887.0,0.05015065]
[1735487706747,1.039342,94891.0,94887.0,0.00025065]
[1735487706924,1.146053,94892.0,94887.0,0.00025065]
[1735487707127,0.01653235,94891.0,94887.0,0.00025065]
[1735487707328,1.14118035,94891.0,94887.0,0.00025065]
[1735487707476,1.035516,94890.0,94887.0,0.00025065]
[1735487707820,0.866283,94890.0,94887.0,0.00025065]
[1735487708023,0.878641,94890.0,94887.0,0.00025065]
[1735487708228,0.407002,94889.0,94887.0,0.00025065]
[1735487708455,0.436869,94890.0,94887.0,0.00025065]
[1735487708606,0.399471,94888.0,94887.0,0.00025065]
[1735487709005,0.01653235,94891.0,94887.0,0.12945065]
[1735487710377,0.01653235,94891.0,94887.0,0.04865065]
[1735487711181,0.30080487,94891.0,94887.0,0.04865065]
[1735487712193,0.28427252,94889.0,94887.0,0.04865065]
[1735487712980,0.229756,94888.0,94887.0,0.04865065]
[1735487713151,0.51402852,94888.0,94887.0,0.04865065]
[1735487713376,1.12918152,94888.0,94887.0,0.04865065]
[1735487714250,0.844909,94888.0,94887.0,0.04865065]
[1735487714579,1.429224,94893.0,94887.0,0.04865065]
[1735487714810,1.308374,94893.0,94887.0,0.04865065]
[1735487715025,0.31980658,94894.0,94887.0,0.04865065]
[1735487715026,0.49202,94892.0,94887.0,0.04865065]
[1735487715194,0.31980658,94892.0,94887.0,0.04865065]
[1735487715396,0.45793,94891.0,94887.0,0.04865065]
[1735487716315,0.456029,94892.0,94887.0,0.04865065]
[1735487716821,0.31980658,94891.0,94887.0,0.04865065]
[1735487717141,0.40763,94890.0,94887.0,0.04865065]
[1735487718708,0.31980658,94889.0,94887.0,0.04865065]
[1735487718910,0.687706,94888.0,94887.0,0.04865065]
[1735487720061,0.805038,94890.0,94887.0,0.04865065]
[1735487720702,0.805038,94890.0,94887.0,0.00025065]
[1735487720916,0.10398632,94889.0,94887.0,0.00025065]
[1735487721151,0.05852853,94887.0,94867.0,0.04288206]
[1735487721403,3.08223032,94886.0,94872.0,0.0001121]
[1735487721603,2.727552,94885.0,94872.0,0.0001121]
[1735487721779,1.94388032,94884.0,94872.0,0.0001121]
[1735487721975,1.454081,94883.0,94872.0,0.0001121]
[1735487722190,0.07836173,94887.0,94872.0,0.0001121]
[1735487722191,1.36175832,94882.0,94872.0,0.0001121]
[1735487722344,1.728862,94881.0,94872.0,0.0001121]
[1735487722553,0.12051939,94880.0,94872.0,0.0001121]
[1735487722763,0.3209115,94874.0,94872.0,0.0001121]
[1735487723104,0.736901,94873.0,94872.0,0.0001121]
[1735487723263,0.704746,94873.0,94872.0,0.0001121]
[1735487723700,1.0256575,94873.0,94872.0,0.0001121]
[1735487724446,1.0256575,94873.0,94867.0,0.0382475]
[1735487724649,0.704746,94872.0,94867.0,0.0382475]
[1735487724848,0.374228,94872.0,94867.0,0.0382475]
[1735487725049,0.3209115,94873.0,94869.0,0.0777]
[1735487725250,0.004,94883.0,94869.0,0.0777]
[1735487725450,0.86400432,94882.0,94869.0,0.0777]
[1735487725677,0.759999,94881.0,94869.0,0.0777]
[1735487725885,0.429548,94881.0,94869.0,0.0777]
[1735487726090,0.10398632,94882.0,94869.0,0.0777]
[1735487726091,0.32072574,94873.0,94869.0,0.0777]
[1735487727004,0.01653323,94873.0,94869.0,0.0777]
[1735487727591,0.01653323,94873.0,94870.0,0.0456]
[1735487728512,0.01653323,94873.0,94870.0,0.0456854]
[1735487733646,0.01653323,94873.0,94871.0,0.04147147]
[1735487733849,0.0001517,94883.0,94871.0,0.04147147]
[1735487734024,0.112021,94882.0,94871.0,0.04147147]
[1735487734684,0.32069274,94875.0,94871.0,0.04147147]
[1735487736320,0.32069274,94875.0,94874.0,0.04147147]
[1735487736850,0.32069274,94875.0,94874.0,0.16477147]
[1735487737193,0.01653336,94875.0,94874.0,0.16477147]
[1735487739587,0.3372261,94875.0,94874.0,0.16477147]
[1735487740127,0.01653336,94875.0,94874.0,0.16477147]
[1735487741064,0.3372261,94875.0,94874.0,0.16477147]
[1735487741678,0.3373969,94875.0,94874.0,0.16477147]
[1735487742106,0.01670416,94875.0,94874.0,0.16477147]
[1735487743934,0.0001708,94875.0,94874.0,0.16477147]
[1735487745300,0.0001708,94875.0,94874.0,0.0456]
[1735487746199,0.0001708,94875.0,94874.0,0.02572208]
[1735487747404,0.12998685,94875.0,94874.0,0.02572208]
[1735487747834,0.13145985,94875.0,94874.0,0.02572208]
[1735487748732,0.13145985,94875.0,94870.0,8.54e-05]
[1735487748733,0.0779,94874.0,94870.0,8.54e-05]
[1735487748937,1.212939,94874.0,94870.0,8.54e-05]
[1735487749147,0.778495,94873.0,94870.0,8.54e-05]
[1735487750035,0.2827,94872.0,94870.0,8.54e-05]
[1735487750162,0.320972,94874.0,94870.0,8.54e-05]
[1735487753029,0.05123206,94874.0,94870.0,8.54e-05]
[1735487753226,0.438766,94874.0,94870.0,8.54e-05]
[1735487753435,0.508428,94873.0,94870.0,8.54e-05]
[1735487753635,0.492862,94872.0,94870.0,8.54e-05]
[1735487753830,0.477188,94871.0,94870.0,8.54e-05]
[1735487754043,0.475287,94871.0,94870.0,8.54e-05]
[1735487754837,0.0001708,94875.0,94870.0,8.54e-05]
[1735487755057,0.316197,94874.0,94870.0,8.54e-05]
[1735487755462,0.28512958,94871.0,94870.0,8.54e-05]
[1735487755665,0.56214758,94871.0,94870.0,8.54e-05]
[1735487756043,0.53919758,94871.0,94870.0,8.54e-05]
[1735487757205,0.55573191,94871.0,94870.0,8.54e-05]
[1735487757406,0.27060233,94871.0,94870.0,8.54e-05]
[1735487759886,0.18538333,94871.0,94870.0,8.54e-05]
[1735487762656,0.14684533,94871.0,94870.0,8.54e-05]
[1735487763272,0.12159433,94871.0,94870.0,8.54e-05]
[1735487763938,0.12259433,94871.0,94870.0,8.54e-05]
[1735487765590,0.12159433,94871.0,94870.0,8.54e-05]
[1735487765988,0.12359433,94871.0,94870.0,8.54e-05]
[1735487766406,0.01853433,94871.0,94870.0,8.54e-05]
[1735487766698,0.01953433,94871.0,94870.0,8.54e-05]
[1735487767103,0.16763933,94871.0,94870.0,8.54e-05]
[1735487767489,0.16863933,94871.0,94870.0,8.54e-05]
[1735487767650,0.15163933,94871.0,94870.0,8.54e-05]
[1735487767850,0.12638833,94871.0,94870.0,8.54e-05]
[1735487769030,0.01953433,94871.0,94870.0,8.54e-05]
[1735487769773,0.16862633,94871.0,94870.0,8.54e-05]
[1735487769977,0.01953433,94871.0,94870.0,8.54e-05]
[1735487770401,0.15162633,94871.0,94870.0,8.54e-05]
[1735487772568,0.135092,94871.0,94870.0,8.54e-05]
[1735487773353,0.003,94871.0,94870.0,8.54e-05]
[1735487773850,0.111842,94871.0,94870.0,8.54e-05]
[1735487774059,0.003,94871.0,94870.0,8.54e-05]
[1735487774251,0.111842,94871.0,94870.0,8.54e-05]
[1735487774660,0.003,94871.0,94870.0,0.18188677]
[1735487775268,0.003,94871.0,94870.0,0.0492854]
[1735487775965,0.001,94871.0,94870.0,0.0492854]
[1735487776638,0.0001708,94874.0,94870.0,0.0492854]
[1735487778836,0.0001708,94874.0,94872.0,0.09574217]
[1735487781225,0.01670288,94874.0,94872.0,0.09574217]
[1735487786445,0.0001708,94874.0,94872.0,0.09574217]
[1735487789743,0.01670382,94874.0,94872.0,0.09574217]
[1735487796255,0.0001708,94874.0,94872.0,0.09574217]
[1735487797465,0.0001517,94883.0,94872.0,0.09574217]
[1735487797466,0.46739789,94886.0,94872.0,0.09574217]
[1735487797668,0.863143,94885.0,94872.0,0.09589387]
[1735487797871,0.46739789,94883.0,94872.0,0.09589387]
[1735487798282,0.195006,94882.0,94873.0,0.01753473]
[1735487798484,0.46739789,94883.0,94872.0,0.09589387]
[1735487798677,0.188828,94882.0,94872.0,0.09589387]
[1735487798853,0.10398632,94886.0,94872.0,0.09589387]
[1735487799059,0.525758,94885.0,94872.0,0.09589387]
[1735487799460,0.01653302,94882.0,94872.0,0.09589387]
[1735487801024,0.01753302,94882.0,94872.0,0.09589387]
[1735487801673,0.02053302,94882.0,94872.0,0.09589387]
[1735487802157,0.02053302,94882.0,94872.0,0.09606467]
[1735487802357,0.02061842,94882.0,94872.0,0.09606467]
[1735487803853,0.0040854,94882.0,94879.0,0.04147147]
[1735487804067,0.0040854,94882.0,94872.0,0.0003225]
[1735487804068,0.0040854,94882.0,94881.0,0.08947147]
[1735487805484,0.0010854,94882.0,94881.0,0.08947147]
[1735487805683,8.54e-05,94882.0,94881.0,0.08947147]
[1735487805873,0.0010854,94882.0,94881.0,0.08947147]
[1735487806472,8.54e-05,94882.0,94881.0,0.08947147]
[1735487806685,0.0030854,94882.0,94881.0,0.08947147]
[1735487807102,0.01661766,94882.0,94881.0,0.08947147]
[1735487807299,0.01761766,94882.0,94881.0,0.048]
[1735487807510,0.01761766,94882.0,94872.0,0.0003225]
[1735487807511,0.01981683,94882.0,94872.0,0.0003225]
[1735487807707,0.373374,94881.0,94873.0,0.04147147]
[1735487808842,0.32094976,94875.0,94873.0,0.04147147]
[1735487809862,8.54e-05,94882.0,94873.0,0.04147147]
[1735487810213,1.264182,94881.0,94873.0,0.04147147]
[1735487810634,1.265182,94881.0,94873.0,0.04147147]
[1735487810943,8.54e-05,94882.0,94873.0,0.04147147]
[1735487811139,0.01653263,94880.0,94873.0,0.04147147]
[1735487812467,0.01753263,94880.0,94873.0,0.04147147]
[1735487813806,0.001,94880.0,94879.0,0.09574217]
[1735487814751,8.54e-05,94882.0,94879.0,0.09574217]
[1735487814943,0.910451,94881.0,94879.0,0.09574217]
[1735487815157,0.001,94880.0,94879.0,0.09574217]
[1735487816136,0.001,94880.0,94873.0,0.04164227]
[1735487816335,0.001,94880.0,94879.0,0.09574217]
[1735487816860,8.54e-05,94882.0,94879.0,0.09574217]
[1735487817019,1.254951,94881.0,94879.0,0.09574217]
[1735487817396,1.255951,94881.0,94879.0,0.09574217]
[1735487817620,8.54e-05,94882.0,94879.0,0.09574217]
[1735487817778,1.254951,94881.0,94879.0,0.09574217]
[1735487817941,0.001,94880.0,94879.0,0.09574217]
[1735487818346,0.01653278,94880.0,94879.0,0.09574217]
[1735487818788,0.01653278,94880.0,94878.0,0.09574217]
[1735487818957,0.01653278,94880.0,94874.0,0.09574217]
[1735487819164,0.01653278,94880.0,94873.0,0.04164227]
[1735487819386,0.01653278,94880.0,94875.0,0.09574217]
[1735487819593,0.361163,94879.0,94875.0,0.09574217]
[1735487820607,0.254704,94878.0,94875.0,0.09574217]
[1735487820810,0.310265,94879.0,94875.0,0.09574217]
[1735487821041,0.202864,94879.0,94875.0,0.09574217]
[1735487821193,0.390218,94879.0,94875.0,0.09574217]
[1735487821375,0.263606,94878.0,94875.0,0.09574217]
[1735487821717,0.296561,94879.0,94875.0,0.09574217]
[1735487821916,0.01653278,94880.0,94875.0,0.09574217]
[1735487822071,0.146971,94879.0,94875.0,0.09574217]
[1735487823409,0.146971,94879.0,94873.0,0.04164227]
[1735487823618,0.146971,94879.0,94875.0,0.09574217]
[1735487824020,0.176504,94881.0,94875.0,0.09574217]
[1735487825748,8.54e-05,94882.0,94879.0,0.09574217]
[1735487825983,0.237294,94881.0,94879.0,0.09574217]
[1735487826822,8.54e-05,94882.0,94879.0,0.09574217]
[1735487826823,0.166268,94880.0,94879.0,0.09574217]
[1735487827074,0.189122,94881.0,94879.0,0.09574217]
[1735487827712,8.54e-05,94882.0,94879.0,0.09574217]
[1735487830990,0.111396,94881.0,94879.0,0.09574217]
[1735487831197,0.01661803,94882.0,94879.0,0.09574217]
[1735487833420,0.108925,94881.0,94879.0,0.09574217]
[1735487836696,0.144019,94881.0,94879.0,0.13721364]
[1735487836871,8.54e-05,94882.0,94881.0,0.04147147]
[1735487837073,8.54e-05,94882.0,94881.0,0.08857147]
[1735487838327,0.33755287,94882.0,94881.0,0.08857147]
[1735487838764,0.33855287,94882.0,94881.0,0.18631364]
[1735487838921,0.33855287,94882.0,94881.0,0.3971884]
[1735487839477,0.01761752,94882.0,94881.0,0.3971884]